fUSD/lending_fUSD_20260130
["ID","MTS","AMOUNT","RATE_DAILY","PERIOD"]
[404082032,1769796644871,-11367.21457723,0.00013978,2]
[404082033,1769796644882,-3299.04,0.00013989,2]
[404082034,1769796644893,-1059.0,0.00013996,2]
[404082035,1769796644903,-200.0,0.00014002,2]
[404082036,1769796644912,-500.0,0.00014007,2]
[404082037,1769796644923,-860.0,0.00014023,2]
[404082038,1769796644933,-756.99855445,0.00014027,2]
[404082039,1769796644943,-183.75,0.00014036,2]
[404082040,1769796644951,-560.19,0.00014049,2]
[404082041,1769796644960,-1662.0,0.0001405,2]
[404082042,1769796644969,-567.0,0.00014062,2]
[404082043,1769796644979,-434.79,0.00014074,2]
[404082044,1769796644989,-992.73,0.00014116,2]
[404082045,1769796644999,-500.0,0.00014284,2]
[404082046,1769796645008,-500.0,0.00014284,2]
[404082047,1769796645018,-500.0,0.00014284,2]
[404082048,1769796645028,-500.0,0.00014284,2]
[404082049,1769796645039,-592.67,0.00014284,2]
[404082050,1769796645049,-500.0,0.00014284,2]
[404082051,1769796645059,-500.0,0.00014284,2]
[404082052,1769796645069,-166.66,0.00014383,2]
[404082053,1769796645079,-986.71,0.00014384,2]
[404082054,1769796645088,-992.73,0.0001439,2]
[404082055,1769796645097,-250.0,0.00014396,2]
[404082056,1769796645106,-250.0,0.00014396,2]
[404082057,1769796645115,-255.0,0.00014411,2]
[404082058,1769796645124,-784.55885967,0.00014414,2]
[404082059,1769796645133,-195.0,0.00014467,2]
[404082060,1769796645142,-600.0,0.00014467,2]
[404082061,1769796645151,-600.0,0.00014467,2]
[404082062,1769796645160,-600.0,0.00014467,2]
[404082063,1769796645169,-600.0,0.00014467,2]
[404082064,1769796645178,-488.14572893,0.00014467,2]
[404082065,1769796645188,-193.0,0.00014467,2]
[404082066,1769796645198,-291.51281962,0.00014467,2]
[404082067,1769796645208,-2500.0,0.00014467,2]
[404082068,1769796645217,-500.0,0.00014467,2]
[404082069,1769796645227,-250.0,0.00014467,2]
[404082070,1769796645236,-195.0,0.00014467,2]
[404082071,1769796645245,-11367.21457723,0.00014468,2]
[404082072,1769796645254,-500.0,0.00014518,2]
[404082073,1769796645263,-500.0,0.00014518,2]
[404082074,1769796645273,-622.5575592,0.00014518,2]
[404082075,1769796645282,-1680.0,0.00014623,2]
[404082076,1769796645292,-992.73,0.00014664,2]
[404082077,1769796645303,-1000.0,0.00014744,2]
[404082078,1769796645312,-619.86272074,0.00014801,2]
[404082079,1769796645323,-756.99855445,0.00014801,2]
[404082080,1769796645332,-166.66,0.00014815,2]
[404082081,1769796645342,-151.0,0.0001485,2]
[404082082,1769796645352,-151.0,0.0001485,2]
[404082083,1769796645362,-151.0,0.0001485,2]
[404082084,1769796645371,-151.0,0.00014862,2]
[404082085,1769796645381,-151.0,0.00014862,2]
[404082086,1769796645391,-151.0,0.00014862,2]
[404082087,1769796645400,-151.0,0.00014862,2]
[404082088,1769796645410,-992.73,0.00014938,2]
[404082089,1769796645419,-11367.21457723,0.00014959,2]
[404082090,1769796645429,-6218.08,0.00015019,2]
[404082091,1769796645438,-986.71,0.00015068,2]
[404082092,1769796645448,-1502.0,0.00015193,2]
[404082093,1769796645457,-1502.0,0.00015193,2]
[404082094,1769796645466,-1502.0,0.00015193,2]
[404082095,1769796645476,-1502.0,0.00015193,2]
[404082096,1769796645486,-1502.0,0.00015193,2]
[404082097,1769796645498,-1502.0,0.00015193,2]
[404082098,1769796645508,-1502.0,0.00015193,2]
[404082099,1769796645518,-992.73,0.00015212,2]
[404082100,1769796645528,-166.66,0.00015247,2]
[404082101,1769796645539,-150.0,0.00015248,2]
[404082102,1769796645549,-11367.21457723,0.00015449,2]
[404082103,1769796645559,-992.77649203,0.00015486,2]
[404082104,1769796645570,-300.1954464,0.00015493,7]
[404082105,1769796645581,-178.11607741,0.00015493,7]
[404082106,1769796645590,-784.55885967,0.00015576,2]
[404082107,1769796645600,-756.99855445,0.00015576,2]
[404082108,1769796645609,-433.0,0.0001562,2]
[404082109,1769796645619,-364.9,0.00015645,2]
[404082110,1769796645628,-986.71,0.00015753,2]
[404082111,1769796645637,-2447.03475648,0.00015787,2]
[404082112,1769796645647,-6457.76343824,0.00015787,2]
[404082113,1769796645656,-11367.21457723,0.00015939,2]
[404082114,1769796645666,-652.99854233,0.0001596,2]
[404082115,1769796645675,-183.75,0.00015991,2]
[404082116,1769796645685,-560.19,0.00016028,2]
[404082117,1769796645696,-2351.0,0.00016086,2]
[404082118,1769796645706,-214.25228857,0.00016115,2]
[404082119,1769796645718,-277.12128111,0.00016115,2]
[404082120,1769796645728,-500.0,0.00016115,2]
[404082121,1769796645737,-434.18209252,0.00016115,2]
[404082122,1769796645747,-3404.72,0.00016116,2]
[404082123,1769796645757,-500.0,0.00016137,2]
[404082124,1769796645766,-772.81,0.00016217,2]
[404082125,1769796645775,-3670.0,0.00016284,2]
[404082126,1769796645786,-756.99855445,0.00016351,2]
[404082127,1769796645796,-500.0,0.00016372,2]
[404082128,1769796645805,-500.0,0.00016372,2]
[404082129,1769796645815,-500.0,0.00016372,2]
[404082130,1769796645825,-208.07287078,0.00016372,2]
[404082131,1769796645835,-592.67,0.00016372,2]
[404082132,1769796645845,-385.18354163,0.00016372,2]
[404082133,1769796645854,-500.0,0.00016372,2]
[404082134,1769796645863,-500.0,0.00016373,2]
[404082135,1769796645872,-500.0,0.00016373,2]
[404082136,1769796645881,-177.64323639,0.00016373,2]
[404082137,1769796645890,-500.0,0.00016373,2]
[404082138,1769796645900,-500.0,0.00016373,2]
[404082139,1769796645909,-500.0,0.00016373,2]
[404082140,1769796645918,-225.37911043,0.00016373,2]
[404082141,1769796645927,-500.0,0.00016373,2]
[404082142,1769796645937,-160.21744138,0.00016373,2]
[404082143,1769796645946,-500.0,0.00016373,2]
[404082144,1769796645955,-500.0,0.00016373,2]
[404082145,1769796645964,-500.0,0.00016373,2]
[404082146,1769796645973,-500.0,0.00016373,2]
[404082147,1769796645982,-500.0,0.00016373,2]
[404082148,1769796645990,-558.9380785,0.00016373,2]
[404082149,1769796645999,-164.62391136,0.00016373,2]
[404082150,1769796646008,-160.21943413,0.00016373,2]
[404082151,1769796646018,-217.57575976,0.00016373,2]
[404082152,1769796646027,-500.0,0.00016373,2]
[404082153,1769796646038,-500.0,0.00016373,2]
[404082154,1769796646048,-500.0,0.00016373,2]
[404082155,1769796646058,-500.0,0.00016373,2]
[404082156,1769796646067,-500.0,0.00016373,2]
[404082157,1769796646077,-500.0,0.00016373,2]
[404082158,1769796646086,-503.15498018,0.00016373,2]
[404082159,1769796646095,-500.0,0.00016373,2]
[404082160,1769796646104,-169.60462217,0.00016373,2]
[404082162,1769796646115,-500.0,0.00016373,2]
[404082163,1769796646124,-500.0,0.00016373,2]
[404082164,1769796646133,-500.0,0.00016373,2]
[404082166,1769796646143,-500.0,0.00016373,2]
[404082168,1769796646152,-500.0,0.00016373,2]
[404082170,1769796646161,-500.0,0.00016373,2]
[404082172,1769796646170,-239.55126374,0.00016373,2]
[404082174,1769796646180,-500.0,0.00016373,2]
[404082176,1769796646189,-500.0,0.00016373,2]
[404082178,1769796646198,-500.0,0.00016373,2]
[404082180,1769796646208,-166.21493216,0.00016373,2]
[404082181,1769796646217,-568.87365999,0.00016373,2]
[404082182,1769796646226,-500.0,0.00016373,2]
[404082183,1769796646235,-500.0,0.00016373,2]
[404082184,1769796646245,-163.00594696,0.00016373,2]
[404082185,1769796646254,-500.0,0.00016373,2]
[404082186,1769796646263,-500.0,0.00016373,2]
[404082187,1769796646272,-500.0,0.00016373,2]
[404082188,1769796646281,-500.0,0.00016373,2]
[404082189,1769796646294,-500.0,0.00016373,2]
[404082190,1769796646303,-160.32431704,0.00016373,2]
[404082191,1769796646312,-500.0,0.00016373,2]
[404082192,1769796646322,-500.0,0.00016373,2]
[404082193,1769796646332,-500.0,0.00016373,2]
[404082194,1769796646341,-163.0,0.000164,2]
[404082195,1769796646351,-11367.21457723,0.00016429,2]
[404082196,1769796646360,-2000.0,0.00016438,2]
[404082197,1769796646369,-500.0,0.00016438,2]
[404082198,1769796646378,-500.0,0.00016438,2]
[404082199,1769796646388,-417.90244786,0.00016438,2]
[404082200,1769796646397,-500.0,0.00016438,2]
[404082201,1769796646406,-500.0,0.00016438,2]
[404082202,1769796646416,-500.0,0.00016438,2]
[404082203,1769796646426,-500.0,0.00016438,2]
[404082204,1769796646438,-503.60266732,0.00016438,2]
[404082205,1769796646447,-500.0,0.00016438,2]
[404082206,1769796646457,-500.0,0.00016438,2]
[404082207,1769796646466,-500.0,0.00016438,2]
[404082208,1769796646477,-500.0,0.00016438,2]
[404082209,1769796646488,-500.0,0.00016438,2]
[404082210,1769796646497,-500.0,0.00016438,2]
[404082211,1769796646506,-500.0,0.00016438,2]
[404082212,1769796646516,-986.71,0.00016438,2]
[404082213,1769796646527,-772.81,0.00016491,2]
[404082214,1769796646538,-1000.0,0.00016587,2]
[404082215,1769796646548,-2828.0,0.0001672,2]
[404082216,1769796646560,-163.0,0.0001672,2]
[404082217,1769796646569,-2833.0,0.0001672,2]
[404082218,1769796646579,-784.55885967,0.00016738,2]
[404082219,1769796646588,-772.81,0.00016765,2]
[404082220,1769796646597,-500.0,0.00016795,2]
[404082221,1769796646606,-364.9,0.00016822,2]
[404082222,1769796646615,-500.0,0.00016895,2]
[404082223,1769796646624,-11367.21457723,0.0001692,2]
[404082224,1769796646634,-500.86269689,0.00016921,2]
[404082225,1769796646643,-500.4902994,0.00016921,2]
[404082226,1769796646652,-1000.0,0.00016921,2]
[404082227,1769796646662,-1000.0,0.00016921,2]
[404082228,1769796646672,-504.68661395,0.00016921,2]
[404082229,1769796646681,-1000.0,0.00016921,2]
[404082230,1769796646691,-1000.0,0.00016921,2]
[404082231,1769796646700,-203.98074386,0.00016921,2]
[404082232,1769796646709,-1000.0,0.00016921,2]
[404082233,1769796646718,-541.28684359,0.00016921,2]
[404082234,1769796646727,-1009.36195064,0.00016921,2]
[404082235,1769796646737,-1000.0,0.00016921,2]
[404082236,1769796646746,-1000.0,0.00016921,2]
[404082237,1769796646756,-1000.0,0.00016921,2]
[404082238,1769796646765,-500.60369246,0.00016921,2]
[404082239,1769796646775,-1000.0,0.00016921,2]
[404082240,1769796646787,-459.6118856,0.00016921,2]
[404082241,1769796646796,-401.53067419,0.00016921,2]
[404082242,1769796646806,-1000.0,0.00016921,2]
[404082243,1769796646815,-1000.0,0.00016921,2]
[404082244,1769796646826,-877.26188408,0.00016921,2]
[404082245,1769796646835,-1000.0,0.00016921,2]
[404082246,1769796646844,-1000.81154381,0.00016921,2]
[404082247,1769796646853,-490.28446551,0.00016921,2]
[404082248,1769796646863,-1000.0,0.00016921,2]
[404082249,1769796646871,-1000.0,0.00016921,2]
[404082250,1769796646881,-503.09870012,0.00016921,2]
[404082251,1769796646890,-500.0,0.00016921,2]
[404082252,1769796646899,-804.05633745,0.00016921,2]
[404082253,1769796646908,-500.0,0.00016921,2]
[404082254,1769796646918,-1000.0,0.00016921,2]
[404082255,1769796646927,-1000.28855452,0.00016921,2]
[404082256,1769796646937,-1000.0,0.00016921,2]
[404082258,1769796646946,-1000.0,0.00016921,2]
[404082260,1769796646954,-1000.0,0.00016921,2]
[404082262,1769796646963,-1000.0,0.00016921,2]
[404082264,1769796646973,-736.0,0.00016937,2]
[404082266,1769796646982,-772.81,0.00017039,2]
[404082268,1769796646991,-165.0,0.0001704,2]
[404082269,1769796647000,-183.75,0.00017063,2]
[404082271,1769796647010,-322.6107,0.00017099,2]
[404082273,1769796647020,-174.61919141,0.00017099,2]
[404082276,1769796647029,-151.0,0.00017099,2]
[404082277,1769796647040,-156.587,0.00017099,2]
[404082279,1769796647050,-162.380719,0.00017099,2]
[404082281,1769796647059,-157.32475157,0.00017099,2]
[404082284,1769796647069,-250.0,0.00017099,2]
[404082285,1769796647078,-578.20924308,0.00017099,2]
[404082287,1769796647088,-209.40437684,0.00017099,2]
[404082289,1769796647097,-854.2589148,0.00017099,2]
[404082291,1769796647106,-560.19,0.0001711,2]
[404082293,1769796647115,-756.99855445,0.00017125,2]
[404082294,1769796647124,-311.20527036,0.00017127,2]
[404082295,1769796647133,-217.15233878,0.00017154,2]
[404082296,1769796647142,-200.0,0.00017174,2]
[404082297,1769796647152,-225.18697532,0.00017209,2]
[404082298,1769796647161,-868.51,0.00017221,2]
[404082299,1769796647170,-1898.85844425,0.00017233,2]
[404082300,1769796647180,-233.51889341,0.00017264,2]
[404082301,1769796647190,-250.0,0.00017293,2]
[404082302,1769796647200,-772.81,0.00017313,2]
[404082303,1769796647209,-242.15909246,0.00017319,2]
[404082304,1769796647218,-251.11897888,0.00017374,2]
[404082305,1769796647228,-1000.0,0.00017383,2]
[404082306,1769796647237,-1500.0,0.000174,2]
[404082307,1769796647247,-11367.21457723,0.0001741,2]
[404082308,1769796647258,-260.4103811,0.00017429,2]
[404082309,1769796647268,-200.0,0.00017456,2]
[404082310,1769796647279,-1000.8272521,0.00017468,2]
[404082311,1769796647289,-1500.0,0.00017468,2]
[404082312,1769796647299,-1360.17062538,0.00017468,2]
[404082313,1769796647308,-1500.0,0.00017468,2]
[404082314,1769796647318,-500.0,0.00017468,2]
[404082315,1769796647327,-1500.0,0.00017468,2]
[404082316,1769796647336,-421.02044444,0.00017468,2]
[404082317,1769796647346,-1500.0,0.00017468,2]
[404082318,1769796647356,-1508.66573499,0.00017468,2]
[404082319,1769796647365,-500.79205538,0.00017468,2]
[404082320,1769796647375,-206.11887871,0.00017468,2]
[404082321,1769796647384,-1500.0,0.00017468,2]
[404082322,1769796647394,-1613.81806741,0.00017468,2]
[404082323,1769796647403,-1500.0,0.00017468,2]
[404082324,1769796647413,-1505.10384072,0.00017468,2]
[404082325,1769796647424,-1500.0,0.00017468,2]
[404082326,1769796647433,-1500.0,0.00017468,2]
[404082327,1769796647443,-656.65111135,0.00017468,2]
[404082328,1769796647452,-270.0455652,0.00017484,2]
[404082329,1769796647461,-868.51,0.00017495,2]
[404082330,1769796647471,-280.03725112,0.00017539,2]
[404082331,1769796647480,-15219.50415699,0.00017569,2]
[404082332,1769796647490,-200.0,0.00017586,2]
[404082333,1769796647501,-772.81,0.00017587,2]
[404082334,1769796647511,-158.82094085,0.00017594,2]
[404082335,1769796647521,-290.39862941,0.00017594,2]
[404082336,1769796647531,-1829.17898656,0.0001764,2]
[404082337,1769796647541,-2021.564,0.00017647,2]
[404082338,1769796647550,-225.55,0.00017647,2]
[404082339,1769796647559,-181.08010149,0.00017647,2]
[404082340,1769796647571,-885.86649465,0.00017647,2]
[404082341,1769796647579,-301.1433787,0.00017649,2]
[404082342,1769796647589,-1000.0,0.00017657,2]
[404082343,1769796647599,-200.0,0.00017671,2]
[404082344,1769796647609,-200.0,0.00017691,2]
[404082345,1769796647618,-3292.0,0.00017694,2]
[404082346,1769796647627,-25000.0,0.00017768,3]
[404082347,1769796647637,-868.51,0.00017769,2]
[404082348,1769796647648,-25000.0,0.00017777,3]
[404082349,1769796647658,-25000.0,0.00017786,3]
[404082350,1769796647669,-500.0,0.00017787,2]
[404082351,1769796647678,-500.0,0.00017787,2]
[404082352,1769796647688,-500.0,0.00017787,2]
[404082353,1769796647698,-592.67,0.00017787,2]
[404082354,1769796647708,-436.47012991,0.00017787,2]
[404082355,1769796647720,-11392.2601682,0.00017787,2]
[404082356,1769796647730,-17042.13988531,0.00017787,2]
[404082357,1769796647740,-23058.6147,0.00017787,2]
[404082358,1769796647750,-25000.0,0.00017794,3]
[404082359,1769796647759,-2314.0,0.000178,2]
[404082360,1769796647770,-25000.0,0.00017803,3]
[404082361,1769796647780,-500.0,0.00017808,2]
[404082362,1769796647790,-500.0,0.00017808,2]
[404082363,1769796647799,-25000.0,0.00017812,3]
[404082364,1769796647998,-153.54698,0.0001782,2]
[404082365,1769796648009,-153.54697,0.0001782,2]
[404082366,1769796648019,-25000.0,0.00017821,3]
[404082367,1769796648028,-500.0,0.00017829,2]
[404082368,1769796648038,-500.0,0.00017829,2]
[404082369,1769796648048,-500.0,0.00017829,2]
[404082370,1769796648058,-592.67,0.00017829,2]
[404082371,1769796648067,-25000.0,0.0001783,3]
[404082372,1769796648075,-109605.83836455,0.0001783,2]
[404082373,1769796648083,-308.61730724,0.00017837,2]
[404082374,1769796648091,-25000.0,0.00017838,3]
[404082375,1769796648100,-25000.0,0.00017847,3]
[404082376,1769796648108,-200.0,0.00017853,2]
[404082377,1769796648116,-25000.0,0.00017856,3]
[404082378,1769796648125,-200.0,0.00017856,2]
[404082379,1769796648133,-303.78,0.00017856,2]
[404082380,1769796648142,-1000.0,0.00017856,2]
[404082381,1769796648151,-772.81,0.00017861,2]
[404082382,1769796648160,-500.0,0.00017863,2]
[404082383,1769796648170,-25000.0,0.00017865,3]
[404082384,1769796648179,-25000.0,0.00017874,3]
[404082385,1769796648189,-25000.0,0.00017882,3]
[404082386,1769796648199,-25000.0,0.00017891,3]
[404082387,1769796648209,-500.0,0.00017899,2]
[404082388,1769796648219,-500.0,0.00017899,2]
[404082389,1769796648228,-500.0,0.00017899,2]
[404082390,1769796648238,-592.67,0.00017899,2]
[404082391,1769796648247,-25000.0,0.000179,3]
[404082392,1769796648256,-10000.0,0.000179,2]
[404082393,1769796648266,-784.55885967,0.000179,2]
[404082394,1769796648276,-756.99855445,0.000179,2]
[404082395,1769796648286,-15219.50415699,0.000179,2]
[404082396,1769796648295,-405.24680696,0.000179,2]
[404082397,1769796648305,-494.33434811,0.000179,2]
[404082398,1769796648315,-19277.62638897,0.000179,3]
[404082399,1769796648325,-5063.36546403,0.000179,2]
[404082400,1769796648334,-11367.21457723,0.000179,2]
[404082401,1769796648343,-165.50957456,0.000179,3]
[404082402,1769796648352,-500.0,0.00017918,2]
[404082403,1769796648362,-1000.0,0.00017931,2]
[404082404,1769796648371,-200.0,0.00017937,2]
[404082405,1769796648381,-500.0,0.00017972,2]
[404082406,1769796648390,-160.11295309,0.00017973,2]
[404082407,1769796648399,-500.0,0.00017973,2]
[404082408,1769796648408,-500.0,0.00017973,2]
[404082409,1769796648418,-500.0,0.00017973,2]
[404082410,1769796648427,-500.0,0.00017973,2]
[404082411,1769796648436,-333.51196878,0.00017973,2]
[404082412,1769796648445,-139.52418295,0.00017973,2]
[404082413,1769796648584,-1.7e-07,0.0001485,2]
[404082414,1769796648904,-57.56715583,0.00013512,2]
[404082415,1769796648954,-176.43284417,0.00013512,2]
[404082416,1769796648965,-150.99999983,0.0001485,2]
[404082417,1769796648976,-361.2655819,0.00017973,2]
[404082418,1769796648987,-150.0,0.00017973,2]
[404082419,1769796648996,-500.0,0.00017973,2]
[404082420,1769796649006,-500.0,0.00017973,2]
[404082421,1769796649015,-500.0,0.00017973,2]
[404082422,1769796649027,-500.0,0.00017973,2]
[404082423,1769796649037,-159.94723969,0.00017973,2]
[404082424,1769796649052,-340.05276031,0.00017973,2]
[404082425,1769796649061,-500.0,0.00017973,2]
[404082426,1769796649071,-500.0,0.00017973,2]
[404082427,1769796649082,-163.36858583,0.00017973,2]
[404082428,1769796649091,-500.63516671,0.00017973,2]
[404082429,1769796649100,-500.0,0.00017973,2]
[404082430,1769796649109,-151.06501544,0.00017973,2]
[404082431,1769796649118,-160.47557318,0.00017973,2]
[404082432,1769796649415,-339.52442682,0.00017973,2]
[404082433,1769796649426,-500.0,0.00017973,2]
[404082434,1769796649435,-500.0,0.00017973,2]
[404082435,1769796649445,-500.0,0.00017973,2]
[404082436,1769796649456,-175.57287607,0.00017973,2]
[404082437,1769796649466,-500.0,0.00017973,2]
[404082438,1769796649477,-436.25526408,0.00017973,2]
[404082439,1769796649498,-63.97894312,0.00017973,2]
[404082440,1769796649507,-421.52105688,0.00017973,2]
[404082441,1769796649519,-78.47894312,0.00017973,2]
[404082442,1769796649529,-500.0,0.00017973,2]
[404082443,1769796649539,-500.0,0.00017973,2]
[404082444,1769796649549,-0.48160417,0.00017973,2]
[404082445,1769796649561,-341.336959,0.00017973,2]
[404082455,1769797011702,212.59,0.00012713,2]
[404082458,1769797313963,177.0,0.00012851,2]
[404082465,1769797533487,5047.97045497,0.00021,30]
[404082479,1769797634110,260.11659878,0.000101,2]
[404082482,1769797648961,-1200.0,0.00013464,2]
[404082483,1769797648985,-150.0,0.00013464,2]
[404082484,1769797649007,-250.0,0.00013465,2]
[404082485,1769797649033,-94372.4785,0.00013465,2]
[404082486,1769797653042,-100000.0,0.00013465,2]
[404082488,1769797673310,-1492.9143056,0.00013,2]
[404082489,1769797677156,-1354.27946033,0.00013,2]
[404082492,1769797693588,-671.86649392,0.00013,2]
[404082493,1769797695713,-500.0,0.00013,2]
[404082494,1769797696513,1933.58266739,0.0001,2]
[404082495,1769797698412,391.91854115,7.888e-05,2]
[404082497,1769797708299,2738.5872377,0.0001,2]
[404082498,1769797717928,4498.79495498,0.0001,2]
[404082499,1769797717951,569.24070493,0.0001,2]
[404082516,1769797831408,-413.57894103,0.00013,2]
[404082518,1769797831418,-250.0,0.00013116,2]
[404082520,1769797831428,-300.0,0.00013233,2]
[404082521,1769797831437,-187.61066729,0.00013364,2]
[404082522,1769797831449,-312.38933271,0.00013364,2]
[404082523,1769797831459,-300.0,0.00013464,2]
[404082524,1769797831468,-1200.0,0.00013464,2]
[404082525,1769797831479,-150.0,0.00013464,2]
[404082526,1769797831489,-300.0,0.00013464,2]
[404082527,1769797831498,-74624.1336,0.00013465,2]
[404082528,1769797831508,-1000.0,0.00013469,2]
[404082529,1769797831519,-300.0,0.00013523,2]
[404082530,1769797831528,-231.36212261,0.00013523,2]
[404082531,1769797831539,-226.91,0.00013565,2]
[404082532,1769797831548,-226.91,0.00013839,2]
[404082533,1769797831558,-212.59,0.00013984,2]
[404082534,1769797831568,-434.79,0.00014,2]
[404082535,1769797831577,-226.91,0.00014113,2]
[404082536,1769797831587,-300.0,0.000143,2]
[404082537,1769797831596,-250.0,0.000143,2]
[404082538,1769797831606,-195.0,0.000143,2]
[404082539,1769797831616,-250.0,0.000143,2]
[404082540,1769797831625,-195.0,0.000143,2]
[404082541,1769797831635,-193.0,0.000143,2]
[404082542,1769797831645,-291.51281962,0.000143,2]
[404082543,1769797831655,-1561.79299506,0.000143,2]
[404082544,1769797831667,-938.20700494,0.000143,2]
[404082545,1769797831676,-195.0,0.000143,2]
[404082546,1769797831687,-5793.95561991,0.00014338,2]
[404082547,1769797831698,-500.0,0.00014338,2]
[404082549,1769797831709,-425.07239199,0.00014338,2]
[404082551,1769797831720,-784.54454562,0.00014338,2]
[404082554,1769797831735,-622.55672686,0.00014338,2]
[404082556,1769797831746,-1470.07670614,0.00014338,2]
[404082558,1769797831757,-657.54691701,0.00014338,2]
[404082560,1769797831768,-287.06431718,0.00014338,2]
[404082562,1769797831779,-1555.22270265,0.00014338,2]
[404082565,1769797831790,-29418.3864835,0.00014338,2]
[404082567,1769797831799,-226.91,0.00014387,2]
[404082569,1769797831809,-1604.12,0.00014558,2]
[404082572,1769797831821,-500.0,0.00014573,2]
[404082574,1769797831831,-255.0,0.00014582,2]
[404082576,1769797831840,-779.0,0.00014645,2]
[404082577,1769797831851,-226.91,0.00014661,2]
[404082579,1769797831860,-1531.0,0.00014674,2]
[404082581,1769797831869,-247.0,0.00014704,2]
[404082583,1769797831879,-251.0,0.00014733,2]
[404082585,1769797831889,-299.99,0.00014759,2]
[404082587,1769797831898,-420.0,0.00014759,2]
[404082589,1769797831908,-420.0,0.00014759,2]
[404082591,1769797831918,-1257.0,0.00014762,2]
[404082593,1769797831927,-1918.0,0.00014791,2]
[404082595,1769797831936,-174.46,0.0001481,2]
[404082597,1769797831946,-999.99,0.0001481,2]
[404082599,1769797831955,-150.99,0.0001481,2]
[404082601,1769797831964,-9999.99,0.0001481,2]
[404082603,1769797831973,-1680.0,0.00014811,2]
[404082605,1769797831985,-1263.0,0.00014821,2]
[404082607,1769797831995,-232.0,0.0001485,2]
[404082609,1769797832004,-561.0,0.00014879,2]
[404082611,1769797832013,-216.93470814,0.000149,2]
[404082613,1769797832023,-1675.0,0.00014908,2]
[404082615,1769797832032,-51439.10702026,0.00015,3]
[404082617,1769797832041,-12562.08924239,0.00015153,2]
[404082619,1769797832050,-293.0,0.00015253,2]
[404082621,1769797832060,-212.59,0.00015255,2]
[404082623,1769797832069,-236.0,0.00015284,2]
[404082625,1769797832079,-522.84,0.00015416,2]
[404082627,1769797832088,-9174.4252583,0.00015458,2]
[404082635,1769797832160,-0.16727,0.00015458,2]
[404082637,1769797832171,-2452.73393138,0.00015458,2]
[404082639,1769797832183,-347.88856276,0.00015458,2]
[404082642,1769797832196,-586.87421991,0.00015458,2]
[404082644,1769797832206,-368.39,0.00015553,2]
[404082646,1769797832215,-500.0,0.00015565,2]
[404082648,1769797832225,-150.0,0.00015565,2]
[404082650,1769797832238,-150.0,0.00015565,2]
[404082652,1769797832247,-500.0,0.00015565,2]
[404082654,1769797832257,-215.78291863,0.00015565,2]
[404082655,1769797832268,-500.0,0.00015565,2]
[404082657,1769797832277,-150.0,0.00015565,2]
[404082659,1769797832287,-150.0,0.00015565,2]
[404082661,1769797832296,-200.0,0.00015617,2]
[404082663,1769797832306,-200.0,0.00015617,2]
[404082665,1769797832315,-500.0,0.00015617,2]
[404082667,1769797832325,-500.0,0.00015617,2]
[404082669,1769797832335,-151.0,0.00015617,2]
[404082671,1769797832344,-500.0,0.0001562,2]
[404082673,1769797832354,-189.31012859,0.0001562,2]
[404082675,1769797832364,-500.0,0.0001562,2]
[404082676,1769797832375,-500.0,0.0001562,2]
[404082677,1769797832386,-150.0,0.0001562,2]
[404082678,1769797832396,-150.0,0.0001562,2]
[404082679,1769797832406,-500.0,0.00015675,2]
[404082680,1769797832416,-500.0,0.00015675,2]